Cogmind - Beta 17.1 @@@ ROGUE MODE // 2026.09.20 @ 17:12:04 Player: H3-MLN Result: Destroyed by YI-UF0 with YI-UF0's Doublenader Performance ------------- Evolutions (0) 0 Regions Visited (2) 400 Robots Destroyed (20) 100 Value Destroyed (442) 442 Prototype IDs (2) 40 Alien Tech Used (0) 0 Bonus (27) 27 TOTAL SCORE: 1009 Bonus ------- Follower Combat Kills 60 Friendly Fire -33 Cogmind --------- Core Integrity 0/250 Matter 247/300 Energy 224/250 System Corruption 0% Temperature Cool (14) Movement Treading (240) Ox1 Location -10/Mines Parts ------- > --- POWER (1) -------- Ion Engine > --- PROPULSION (2) --- Light Treads Light Treads > --- UTILITY (2) ------ High-capacity Storage Unit Seismic Detector > --- WEAPON (2) ------- Beam Cannon Assault Rifle > --- INVENTORY (20) --- Ion Engine Wheel Wheel Compact Wheel High-capacity Storage Unit High-capacity Matter Pod (200) High-capacity Matter Pod (200) Machine Analyzer Signal Interpreter Hacking Suite Hacking Suite Medium Laser Assault Rifle Assault Rifle Light Cannon Mining Laser Peak State ------------ > --- POWER ------------ Ion Engine > --- PROPULSION ------- Light Treads Compact Wheel > --- UTILITY ---------- High-capacity Storage Unit Seismic Detector > --- WEAPON ----------- Medium Laser Assault Rifle > --- INVENTORY -------- Ion Engine Light Treads Light Treads Wheel Wheel High-capacity Storage Unit High-capacity Matter Pod Machine Analyzer Signal Interpreter Hacking Suite Hacking Suite Beam Cannon Light Cannon Mining Laser [Rating: 9] Favorites ----------- Power Ion Engine Engine Ion Engine Propulsion Light Treads Treads Light Treads Wheel Compact Wheel Utility Seismic Detector Device Seismic Detector Storage High-capacity Storage Unit Weapon Assault Rifle Energy Gun Medium Laser Energy Cannon Beam Cannon Ballistic Gun Assault Rifle Ballistic Cannon Light Cannon Build | -11 -10 -10 ------- Run | Yrd Mat Min Slots Evolved . | . . . Power . | . . . Propulsion . | . . . Utility . | . . . Weapon . | . . . Parts Attached 15 | 7 4 4 Power 2 | 1 1 . Engine 2 | 1 1 . Core . | . . . Reactor . | . . . Propulsion 4 | 2 . 2 Treads 3 | 1 . 2 Leg . | . . . Wheel 1 | 1 . . Hover . | . . . Flight . | . . . Utility 3 | 2 1 . Device 1 | 1 . . Storage 2 | 1 1 . Processor . | . . . Hackware . | . . . Protection . | . . . Artifact . | . . . Weapon 6 | 2 2 2 Energy Gun 2 | 1 1 . Energy Cannon 1 | . . 1 Ballistic Gun 2 | 1 . 1 Ballistic Cannon 1 | . 1 . Launcher . | . . . Special Weapon . | . . . Impact Weapon . | . . . Slashing Weapon . | . . . Piercing Weapon . | . . . Special Melee Weapon . | . . . Unidentified Prototypes . | . . . Parts Lost 2 | . 1 1 Power 1 | . 1 . Propulsion 1 | . . 1 Utility . | . . . Weapon . | . . . Highest Loss Streak 1 | . 1 1 To Critical Strikes . | . . . Average Backups 11 | 2 8 15 Power . | . . 1 Propulsion 3 | 1 3 3 Utility 4 | . 3 6 Weapon 2 | . 2 3 Tool/Special . | . . . Unused Backups 13 | . 1 12 Power 2 | . 1 1 Propulsion 2 | . . 2 Utility 7 | . . 7 Weapon 2 | . . 2 Tool/Special . | . . . Average Slot Usage (%) 99 | . 99 100 Engine 13 | . 13 14 Treads 14 | . 14 14 Wheel 13 | . 14 13 Device 14 | . 14 14 Storage 14 | . 14 14 Energy Gun 12 | . 14 10 Ballistic Gun 12 | . 11 14 Ballistic Cannon 2 | . 2 2 Peak Build Rating 9 | 7 9 9 Average Rating 8 | 4 7 9 On Entrance 5 | . 7 9 Avg Prop Armor Cover (%) 12 | 14 12 12 Naked Turns . | . . . Heaviest Build 51 | 14 50 51 Greatest Support 40 | 20 16 40 Greatest Overweight (x) 3 | 1 3 3 Average Overweight (x) 1 | . 1 2 Largest Inventory Capacity 20 | 8 20 20 Average Capacity 15 | 6 12 20 Most Carried 17 | 6 14 17 Average Carried 11 | 3 8 15 Final Capacity 20 | 8 20 20 Final Carried 16 | 6 14 16 Class Distribution -------------------- 100% | Mutant Dominant Class ---------------- Mutant | -10/Materials Mutant | -10/Mines Resources | -11 -10 -10 ----------- Run | Yrd Mat Min Matter Collected 717 | 282 377 58 Remotely . | . . . Salvage Created 744 | 95 550 99 Parts 38 | 4 30 4 Haulers Intercepted 1 | . 1 . Recyclers Shooed . | . . . Parts Field Recycled . | . . . Retrieved Matter . | . . . Parts Self-Destructed . | . . . Prevented . | . . . Parts Restored . | . . . Kills | -11 -10 -10 ------- Run | Yrd Mat Min Combat Hostiles Destroyed 12 | . 10 2 Guns 10 | . 8 2 Cannons 2 | . 2 . Classes Destroyed 8 | 2 6 . Worker 1 | . 1 . Tunneler 1 | 1 . . Hauler 1 | . 1 . Recycler 2 | 1 1 . Mechanic 1 | . 1 . Operator 2 | . 2 . Swarmer 3 | . 3 . Grunt 9 | . 7 2 Best Kill Streak 4 | 2 4 2 Combat Bots Only 4 | . 4 2 Max Kills in Single Turn 2 | 1 2 1 Gunslinging 1 | . 1 . Exploded . | . . . Melee . | . . . Uniques/NPCs Destroyed . | . . . Combat | -11 -10 -10 -------- Run | Yrd Mat Min Hostile Shots Fired 70 | . 35 35 Missed 19 | . 8 11 Hits 51 | . 27 24 Melee 2 | . . 2 Projectile 49 | . 27 22 AOE 14 | . . 14 Damage Taken 1013 | . 355 658 Core 262 | . 74 188 Absorbed by Shields . | . . . Core Remaining (%) 100 | 100 . . Volleys Fired 66 | 4 40 22 Largest 2 | 2 2 2 Hottest 80 | 60 80 80 Shots Fired 132 | 8 80 44 Gun 114 | 8 68 38 Cannon 18 | . 12 6 Launcher . | . . . Special . | . . . Kinetic 66 | 4 40 22 Thermal 66 | 4 40 22 Explosive . | . . . Electromagnetic . | . . . Robot Hit Streak 13 | 4 13 7 Robot Miss Streak 3 | 2 3 3 Penetration Max . | . . . Secondary Targets 3 | . 2 1 Max Gunslinging Chain 1 | . 1 1 Shots Hit Robots 85 | 4 54 27 Core Hits 39 | 3 26 10 Critical Kills . | . . . Critical Parts Destroyed 1 | . 1 . Critical Strikes 3 | . 2 1 Burn 2 | . 1 1 Destroy 1 | . 1 . Melee Attacks . | . . . Impact . | . . . Slashing . | . . . Piercing . | . . . Sneak Attacks . | . . . Combat Hostiles . | . . . Follow-up Attacks . | . . . Damage Inflicted 1157 | 67 742 348 Guns 995 | 67 633 295 Cannons 162 | . 109 53 Explosions . | . . . Melee . | . . . Ramming . | . . . Kinetic 629 | 55 396 178 Thermal 528 | 12 346 170 Explosive . | . . . Electromagnetic . | . . . Impact . | . . . Slashing . | . . . Piercing . | . . . Highest Corruption . | . . . Average Corruption . | . . . Corruption Purged . | . . . Corruption Blocked . | . . . Overload Shots . | . . . Overflow Damage . | . . . Projectiles . | . . . Explosions . | . . . Melee . | . . . Knockbacks 1 | . 1 . Impact . | . . . Kinetic 1 | . 1 . Secondary . | . . . Self-Inflicted Damage . | . . . Shots . | . . . Rammed . | . . . Targets Rammed . | . . . Kicked . | . . . Crushed . | . . . Highest Temperature 216 | . 216 159 Average Temperature 67 | . 81 45 Received Heat Transfer 270 | . 168 102 Siege Activations . | . . . Martial Activations . | . . . Shielding Activations . | . . . Robots Disrupted . | . . . Combat Hostiles . | . . . Robots Corrupted . | . . . Combat Hostiles . | . . . Parts Fried . | . . . Impact Corruptions . | . . . Robots Melted . | . . . Combat Hostiles . | . . . Parts Melted 2 | . 2 . Heat Transferred 1544 | 25 1001 518 Parts Sabotaged . | . . . Parts Stolen . | . . . Parts Stripped . | . . . Power Chain Reactions . | . . . Alert | -11 -10 -10 ------- Run | Yrd Mat Min Maximum Alert Level . | . . . Low Security (%) 100 | 100 100 100 Level 1 . | . . . Level 2 . | . . . Level 3 . | . . . Level 4 . | . . . Level 5 . | . . . High Security . | . . . Max Security . | . . . Peak Influence 78 | 5 78 48 Initial . | . . . Average 19 | . 35 6 Influence Increases 406 | 10 288 108 Destroy 0b10 Robot/C 280 | . 200 80 Destroy 0b10 Robot/NC 40 | 10 30 . Destroy Leader 72 | . 52 20 Allied During Kill 8 | . . 8 Successful Hack 6 | . 6 . Influence Decreases 406 | 10 288 108 Time Decay 392 | 10 278 104 Lost Part 10 | . 10 . Lost Ally 4 | . . 4 Squads Dispatched 2 | . 2 . Investigation . | . . . Extermination . | . . . Reinforcement 2 | . 2 . Assault . | . . . Garrison . | . . . Intercept . | . . . Searches Triggered . | . . . Construction Impeded . | . . . Haulers Reinforced . | . . . Active Scanning Responses . | . . . Cargo Convoy Interrupts . | . . . Stealth | -11 -10 -10 --------- Run | Yrd Mat Min Distress Signals 1 | . . 1 Communications Jammed . | . . . Distress Signals . | . . . Times Spotted 22 | . 16 6 Peak Tracking Total 3 | . 3 2 Tactical Retreats . | . . . Traps | -11 -10 -10 ------- Run | Yrd Mat Min Traps Triggered 1 | . 1 . Indirectly . | . . . Trap Hack Attempts . | . . . Triggered . | . . . Disarmed . | . . . Reprogrammed . | . . . Reused . | . . . Traps Extracted . | . . . Installed . | . . . Triggered . | . . . Machines | -11 -10 -10 ---------- Run | Yrd Mat Min Machines Disabled . | . . . Max in Single Turn . | . . . Machines Repaired . | . . . Machines Dismantled . | . . . Machines Sabotaged . | . . . Overloaded Fab Kills . | . . . Hacking | -11 -10 -10 --------- Run | Yrd Mat Min Machines Accessed 5 | . 5 . Terminals 5 | . 5 . Fabricators . | . . . Repair Stations . | . . . Recycling Units . | . . . Scanalyzers . | . . . Garrison Access . | . . . Total Hacks 9 | . 9 . Successful 5 | . 5 . Failed 3 | . 3 . Catastrophic 1 | . 1 . Database Lockouts 1 | . 1 . Manual 7 | . 7 . Terminals 9 | . 9 . Fabricators . | . . . Repair Stations . | . . . Recycling Units . | . . . Scanalyzers . | . . . Garrison Access . | . . . Terminal Hacks 5 | . 5 . Part Schematic 1 | . 1 . Robot Analysis 2 | . 2 . Prototype ID Bank 1 | . 1 . Locate Traps 1 | . 1 . Fabricator Hacks . | . . . Repair Station Hacks . | . . . Recycling Unit Hacks . | . . . Scanalyzer . | . . . Garrison Access Hacks . | . . . Unauthorized Hacks . | . . . Terminals . | . . . Fabricators . | . . . Repair Stations . | . . . Recycling Units . | . . . Scanalyzers . | . . . Garrison Access . | . . . Data Cores Recovered . | . . . Used . | . . . Hacking Detections 5 | . 5 . Full Trace Events . | . . . Feedback Events . | . . . Feedback Blocked . | . . . Robot Schematics Acquired . | . . . Robots Built . | . . . Authchips . | . . . Time . | . . . Total Robot Build Rating . | . . . Part Schematics Acquired 1 | . 1 . Parts Built . | . . . Authchips . | . . . Time . | . . . Total Part Build Rating . | . . . Part Studies Acquired . | . . . Parts Repaired . | . . . Time . | . . . Parts Recycled . | . . . Recycled Matter . | . . . Retrieved Matter . | . . . Retrieved Components . | . . . Parts Scanalyzed . | . . . Part Schematics Acquired . | . . . Parts Damaged . | . . . Bothacking | -11 -10 -10 ------------ Run | Yrd Mat Min Used RIF Installer . | . . . Robots Hacked . | . . . Non-combat . | . . . Combat . | . . . Robot Hacks Applied . | . . . Relay Couplers Released . | . . . Fabnet Peak Effective % . | . . . Robots Rewired . | . . . Allies Hacked . | . . . Hacks Repelled . | . . . Allies | -11 -10 -10 -------- Run | Yrd Mat Min Total Allies 3 | . . 3 Largest Group 3 | . . 3 Highest-Rated Group 40 | . . 40 Highest-Rated Ally 16 | . . 16 Total Orders . | . . . Ally Attacks 13 | . . 13 Total Damage 102 | . . 102 Kills 3 | . . 3 Allies Corrupted . | . . . Allies Melted . | . . . Intel | -11 -10 -10 ------- Run | Yrd Mat Min Active Infowar (turns) 1490 | 35 708 747 Seismic 1490 | 35 708 747 Robot Analysis Total 2 | . 2 . Derelict Logs Recovered 1 | . . 1 Drone Launches . | . . . Drone Recoveries . | . . . Exploration | -11 -10 -10 ------------- Run | Yrd Mat Min Turns Passed 1562 | 107 708 747 Spaces Moved 1002 | 82 467 453 Core 16 | 16 . . Treads 12 | 3 . 9 Legs . | . . . Wheels 974 | 63 467 444 Hover . | . . . Flight . | . . . Fastest Speed 50 | 50 100 145 Average Speed 128 | 94 117 146 Slowest Speed 240 | 160 145 240 Overloaded Moves . | . . . Propulsion Burnouts . | . . . Robots Hopped . | . . . Potential Cave-ins . | . . . Cave-ins Triggered . | . . . Exploration Rate (%) 54 | 4 63 95 Regions Visited 2 Branch Regions 1 Pre-discovered Areas . | . . . Known Exits Taken . | . . . Unknown Exits Taken 2 | 1 1 . Scrap Searched 3 | . . 3 Spaces Dug . | . . . Terrain Destroyed . | . . . Melee . | . . . Projectile . | . . . AOE . | . . . Terrain Rammed . | . . . Walls Destroyed . | . . . Machines Disabled . | . . . Actions | -11 -10 -10 --------- Run | Yrd Mat Min Total 1136 | 100 547 489 Wait 31 | 2 23 6 Move 1000 | 81 466 453 Hop . | . . . Pick Up 19 | 6 10 3 Fast Attach 8 | 7 1 . Attach 1 | . . 1 Detach . | . . . Swap 8 | . 4 4 Drop 3 | . 3 . Fire 66 | 4 40 22 Melee . | . . . Ram . | . . . Kick . | . . . Crush . | . . . Escape Stasis . | . . . Rewire . | . . . Trap . | . . . Miscellaneous . | . . . Route ------- -11/Scrapyard -10/Materials (discovered 3 exits: [*Mat x2] / [*Min]) -10/Mines (discovered 2 exits: [*Mat x2]) History --------- Turn | Location | Event 26 | -11/Scrapyard | Discovered new exit (range 14) 108 | -11/Scrapyard | Entered Materials 225 | -10/Materials | Discovered new exit (range 16) 322 | -10/Materials | Build established: Mutant 411 | -10/Materials | Discovered new exit (range 13) 622 | -10/Materials | Central database locked down 642 | -10/Materials | Discovered new exit (range 10) 816 | -10/Materials | Entered Mines 919 | -10/Mines | Deemed a non-threat by the Exiles lab entrance 1032 | -10/Mines | Assisted by bots powering up and referring to "LRC-V3" 1139 | -10/Mines | Discovered new exit (range 13) 1244 | -10/Mines | Learned 8 Materials zone layouts 1269 | -10/Mines | Excavation squad dispatched 1269 | -10/Mines | A large section of the Mines collapsed 1274 | -10/Mines | Core integrity fell below 50% 1429 | -10/Mines | Discovered new exit (range 5) 1553 | -10/Mines | Core integrity fell below 20% 1563 | -10/Mines | Destroyed by YI-UF0 with YI-UF0's Doublenader Last Messages --------------- 01416_ Searching scrap... 01416_ Found Heat Sink. 01416_ Found Assault Rifle. 01416_ Found 48 Matter. 01417_ Acquired 10 matter. 01419_ Acquired Assault Rifle. 01429_ EXIT=FOUND 01507_ YI-UF0 mumbles something. 01547_ YI-UF0: "BOOM TO YOU TOO!" 01548_ Lgt. Treads destroyed. 01548_ YI-UF0: "KAPOW!" 01548_ Trooper 1b destroyed. 01552_ YI-UF0: "WHAAM!" 01552_ K-01 Serf destroyed. 01553_ U-05 Engineer builds a Wall. 01557_ The unstable cave ceiling collapses. 01557_ U-05 Engineer builds a Wall. 01558_ Destroyed Shock Absorption System. 01560_ The unstable cave ceiling collapses. 01561_ U-05 Engineer builds a Wall. Map ----- +----------------------------------------------------+ | ????????????# ### ########## ##???? | | ????????????# !!!! ## #???? | | ????????????# !!!! ## !% # #??? | | #???????????## !!!! ## ########### < #?? | | #????????????# ! ! ### ##?????????## #? | | #????????????# #?## #???????????## # | | ############## ##??# ##????????????### # | | ## ###???# ##??????????????# ## | | ########### ##?????# #???????????????###? | | ## #?????????####??????# #??????????????????? | | ?# #???????????????????## ##??????????????????? | | ?# #?? ??????????#####??## #???????????????????? | | ?# #?? #???????## ##??# #???????????????????? | | ?# #? ##?????# #??# #######?????????????? | | ?# #?# ##????# ##?# #?????????????? | | ?# #?# ##???# #?######## ########??????? | | ?# #??# ###??# ##???????# # | | ## %#?## ##??# ##??????# ########??????? | | # ! ### #??# ##?????# #?????????????? | | #?## ####### #?????????????? | | # ## #?????????????? | | # ## = ####### #### #####? | | ## ###??# ### ## | | ?## #????#### g ## ##### # | | ??# #???????## ## #####???? """ | | ### ###??????# @ ## ## ##??? """ | | ## ##?????# ### #??? """ | | #????# ### #### # | | #????# ##??# ## t ! [ # | | ##????###???# ### ## %% # | | ##???????????# ##??#### #### # | | ######????????????# ##??##### #??? # | | #?????????????????###????# #???? ## | | #????????????????????????# #???? ##? | | #????????????????????????# ## #?????##?? | | ##???????????????######### ## ##???????? | | ##??????????????# ### #???????? | | ##?????????????# ####### #?## #???????? | | #?????????????# #?????# ##?## #???????? | | #????????????## ###??## ##?#### #???????? | | ##??????????## #### #????## ##??????? | | #?????????## #?????# #####??? | | #?????????# ##?????## #??? | | #?????????# ####??????## #??? | | #????????##=[ ## ##????????## ##??? | | " #???????## *==#######????????## ##???? | | " ##??????## !%##????#?????????# #????? | | " ##???????# [#### ##????????# ##???? | | ##???????## < #????????#### #???? | | ##?????#### #???????????## #???? | +----------------------------------------------------+ Best States ------------- Heat Dissipation 25 Energy Generation 10 Energy Capacity 250 Matter Stores 300 Matter Capacity 300 Sight Range 16 Terrain Scan Density 10 Evasion (%) 40 Recoil Reduction 2 Item Schematics ----------------- Hcp. Storage Unit | -10/Materials | Hacked Robot Schematics ------------------ None Fabricated ------------ Nothing Repaired ---------- Nothing Studied --------- None Alien Tech Used ----------------- None Achievements -------------- None Challenges ------------ None Game ------ Seed AntigravIntegrityAccelerator Manual? 0 Play Time 00:17:56 Cumulative 1841.5 hours Start 2026.09.20 @ 13:02:27 End 2026.09.20 @ 17:12:04 Sessions 2 Manual Loads 0 Difficulty Rogue Special Mode None Game No. 555 Rogue 547 Adventurer 4 Explorer 4 Win Type - Total 78 Types 32/12/6/4/2/5/10/2/3/2 Lore% 98 Gallery% 96 Achievement% 94 Wizard Run 0 Options --------- Layout 0 ASCII 0 Keyboard 0 Movement Numpad Keybinds 0 Fullscreen 2 Font 18/SmallcapsGlow Map View 76x50 Zoom Use 0% Tactical HUD 1 Map Filters NONE Filters NONE Steam 1 RUN: ad864d50-01a2-45a5-ac7e-8f14bd2f4f18